fUSD/lending_fUSD_20260203
["ID","MTS","AMOUNT","RATE_DAILY","PERIOD"]
[404367172,1770079850016,-450.0,0.00015021,2]
[404367173,1770079850026,-868.9,0.00015068,2]
[404367174,1770079850035,-7810.3,0.00015068,2]
[404367175,1770079850044,-900.0,0.00015068,2]
[404367176,1770079850053,-1036.58,0.00015126,2]
[404367177,1770079850062,-352.79,0.00015216,2]
[404367178,1770079850071,-150.00767302,0.00015218,2]
[404367179,1770079850080,-988.5,0.00015342,2]
[404367180,1770079850089,-1006.52245564,0.00015342,2]
[404367181,1770079850098,-269.29562662,0.00015342,2]
[404367182,1770079850107,-501.43163729,0.00015342,2]
[404367183,1770079850117,-1500.0,0.00015342,2]
[404367184,1770079850127,-365.91722632,0.00015342,2]
[404367185,1770079850136,-501.85428238,0.00015342,2]
[404367186,1770079850145,-2000.0,0.00015342,2]
[404367187,1770079850154,-2000.0,0.00015342,2]
[404367188,1770079850163,-360.21,0.00015357,2]
[404367189,1770079850172,-201.93286099,0.0001536,2]
[404367190,1770079850181,-1651.81367706,0.0001536,2]
[404367191,1770079850190,-232.03003895,0.0001536,2]
[404367192,1770079850199,-242.15909246,0.0001536,2]
[404367193,1770079850208,-284.3,0.00015389,2]
[404367194,1770079850217,-1036.58,0.000154,2]
[404367195,1770079850227,-500.0,0.0001548,2]
[404367196,1770079850235,-200.0,0.0001548,2]
[404367197,1770079850245,-201.39718201,0.00015569,2]
[404367198,1770079850254,-2352.0,0.000156,2]
[404367199,1770079850263,-1500.0,0.000156,2]
[404367200,1770079850272,-1036.63586456,0.00015674,2]
[404367201,1770079850282,-301.87,0.00015748,2]
[404367202,1770079850291,-7810.3,0.00015753,2]
[404367203,1770079850300,-2500.0,0.0001589,2]
[404367204,1770079850309,-1476.77715123,0.000159,2]
[404367205,1770079850318,-346.92554585,0.00015906,2]
[404367206,1770079850327,-747.8093786,0.00015907,2]
[404367207,1770079850336,-599.60298507,0.00015907,2]
[404367208,1770079850345,-209.40437684,0.00015908,2]
[404367209,1770079850354,-1712.93078312,0.00015908,2]
[404367210,1770079850363,-251.11897888,0.00015908,2]
[404367211,1770079850372,-500.0,0.00015927,2]
[404367212,1770079850381,-352.79,0.00015941,2]
[404367213,1770079850390,-5000.0,0.0001596,2]
[404367214,1770079850399,-500.0,0.00015973,2]
[404367215,1770079850409,-151.0,0.00015982,2]
[404367216,1770079850419,-113750.115,0.00015985,2]
[404367217,1770079850428,-1379.17071038,0.0001599,2]
[404367218,1770079850438,-151.0,0.00015997,2]
[404367219,1770079850447,-1149884.00238132,0.00016,4]
[404367220,1770079851250,-151.0,0.00012605,2]
[404367221,1770079851262,-151.0,0.00013697,2]
[404367222,1770079851273,-7.04309007,0.00013698,2]
[404367223,1770079851287,-492.95690993,0.00013698,2]
[404367224,1770079851298,-221.70139517,0.00013698,2]
[404367225,1770079852326,-150.01536318,0.0001009,2]
[404367226,1770079852339,-208.37048386,0.00010993,2]
[404367227,1770079852350,-29.75915299,0.0001162,2]
[404367228,1770079852363,-120.25621019,0.0001162,2]
[404367229,1770079852374,-150.01536318,0.00013151,2]
[404367230,1770079852385,-278.29860483,0.00013698,2]
[404367231,1770079852395,-500.0,0.00013698,2]
[404367232,1770079852403,-5.61310847,0.00013698,2]
[404367233,1770079852433,-494.38689153,0.00013698,2]
[404367234,1770079852442,-442.87817685,0.00013698,2]
[404367235,1770079852451,-711.64,0.00013699,2]
[404367236,1770079852460,-150.01536318,0.00014681,2]
[404367237,1770079852469,-9351.76026051,0.00016,4]
[404367238,1770079852484,-12919.6749717,0.00016,4]
[404367239,1770079852495,-6023.04433623,0.00016,4]
[404367240,1770079852507,-2357.61,0.00016,4]
[404367241,1770079852527,-19992.34975798,0.00016,4]
[404367242,1770079852540,-661.1367839,0.00016,4]
[404367243,1770079852552,-352.72799642,0.00016,4]
[404367244,1770079852564,-5642.70196642,0.00016,4]
[404367245,1770079852858,-1059.30539065,0.00013424,2]
[404367246,1770079852867,-233.21848993,0.00013424,2]
[404367247,1770079852879,-807.49596618,0.00013424,2]
[404367248,1770079852888,-17301.16622324,0.00016,4]
[404367249,1770079852900,-489.41642455,0.00016,4]
[404367250,1770079852918,-11729.9999999,0.00016,4]
[404367251,1770079852931,-505.01796416,0.00016,4]
[404367252,1770079852945,-16214.22461897,0.00016,4]
[404367253,1770079852961,-3915.02887046,0.00016,4]
[404367254,1770079852975,-13567.95713481,0.00016,4]
[404367255,1770079865729,6900.01,9.173e-05,2]
[404367256,1770079865754,10000.01,9.173e-05,2]
[404367257,1770079865778,10000.01,9.173e-05,2]
[404367258,1770079865801,10000.01,9.173e-05,2]
[404367259,1770079881394,-3100.02,9.173e-05,2]
[404367260,1770079938489,10000.01,9.074e-05,2]
[404367261,1770079938520,10000.01,9.074e-05,2]
[404367262,1770079938551,10000.01,9.074e-05,2]
[404367263,1770080041530,150.0,9.073e-05,2]
[404367264,1770080041617,300.0,9.073e-05,2]
[404367265,1770080042880,300.0,9.073e-05,2]
[404367266,1770080061766,150.0,9.047e-05,2]
[404367267,1770080062123,150.0,9.047e-05,2]
[404367269,1770080101599,1200.0,9.073e-05,2]
[404367272,1770080104533,298.76274846,9.073e-05,2]
[404367273,1770080104893,500.0,9.073e-05,2]
[404367274,1770080105205,271.3225951,9.073e-05,2]
[404367275,1770080105779,500.0,9.073e-05,2]
[404367276,1770080106163,348.92776737,9.073e-05,2]
[404367277,1770080115797,500.0,9.073e-05,2]
[404367278,1770080115869,500.0,9.073e-05,2]
[404367279,1770080115917,500.0,9.073e-05,2]
[404367280,1770080115962,500.0,9.073e-05,2]
[404367281,1770080116018,500.0,9.073e-05,2]
[404367282,1770080116077,500.0,9.073e-05,2]
[404367283,1770080116121,500.0,9.073e-05,2]
[404367284,1770080116165,500.0,9.073e-05,2]
[404367285,1770080116217,500.0,9.073e-05,2]
[404367286,1770080116260,157.40216047,9.073e-05,2]
[404367287,1770080116300,500.0,9.073e-05,2]
[404367288,1770080116367,500.0,9.073e-05,2]
[404367289,1770080116423,173.5947286,9.073e-05,2]
[404367290,1770080116454,326.4052714,9.073e-05,2]
[404367291,1770080116513,500.0,9.073e-05,2]
[404367292,1770080116562,500.0,9.073e-05,2]
[404367293,1770080116608,500.0,9.073e-05,2]
[404367294,1770080116663,500.0,9.073e-05,2]
[404367295,1770080116708,500.0,9.073e-05,2]
[404367296,1770080116762,500.0,9.073e-05,2]
[404367297,1770080116809,500.0,9.073e-05,2]
[404367298,1770080116869,500.0,9.073e-05,2]
[404367299,1770080116938,500.0,9.073e-05,2]
[404367300,1770080116991,500.0,9.073e-05,2]
[404367301,1770080117064,500.0,9.073e-05,2]
[404367302,1770080117122,500.0,9.073e-05,2]
[404367303,1770080117169,500.0,9.073e-05,2]
[404367304,1770080117224,500.0,9.073e-05,2]
[404367305,1770080117307,500.0,9.073e-05,2]
[404367306,1770080117356,500.0,9.073e-05,2]
[404367307,1770080117408,500.0,9.073e-05,2]
[404367308,1770080117462,500.0,9.073e-05,2]
[404367309,1770080117508,500.0,9.073e-05,2]
[404367310,1770080117562,173.6047286,9.073e-05,2]
[404367311,1770080117588,326.3952714,9.073e-05,2]
[404367312,1770080117640,500.0,9.073e-05,2]
[404367313,1770080117918,596.06681227,9.073e-05,2]
[404367314,1770080117974,500.0,9.073e-05,2]
[404367315,1770080118029,500.0,9.073e-05,2]
[404367316,1770080118076,500.0,9.073e-05,2]
[404367317,1770080118124,500.0,9.073e-05,2]
[404367318,1770080118179,500.0,9.073e-05,2]
[404367319,1770080118236,500.0,9.073e-05,2]
[404367320,1770080118297,500.0,9.073e-05,2]
[404367321,1770080118345,500.0,9.073e-05,2]
[404367322,1770080118394,500.0,9.073e-05,2]
[404367323,1770080118445,500.0,9.073e-05,2]
[404367324,1770080118488,500.0,9.073e-05,2]
[404367325,1770080118537,500.0,9.073e-05,2]
[404367326,1770080118585,500.0,9.073e-05,2]
[404367327,1770080118635,500.0,9.073e-05,2]
[404367328,1770080118689,500.0,9.073e-05,2]
[404367329,1770080118735,500.0,9.073e-05,2]
[404367330,1770080118792,500.0,9.073e-05,2]
[404367331,1770080118846,77.54791633,9.073e-05,2]
[404367332,1770080118869,422.45208367,9.073e-05,2]
[404367333,1770080118918,500.0,9.073e-05,2]
[404367334,1770080118987,500.0,9.073e-05,2]
[404367335,1770080119034,500.0,9.073e-05,2]
[404367336,1770080149536,455.80258767,9.073e-05,2]
[404367337,1770080161552,300.0,9.073e-05,2]
[404367338,1770080221499,300.0,9.073e-05,2]
[404367339,1770080222210,150.0,9.073e-05,2]
[404367341,1770080225940,344.71273083,9.073e-05,2]
[404367342,1770080238393,500.0,9.073e-05,2]
[404367343,1770080238435,500.0,9.073e-05,2]
[404367344,1770080238485,500.0,9.073e-05,2]
[404367345,1770080238545,500.0,9.073e-05,2]
[404367346,1770080238592,500.0,9.073e-05,2]
[404367347,1770080238636,500.0,9.073e-05,2]
[404367348,1770080238705,500.0,9.073e-05,2]
[404367349,1770080238772,571.42796771,9.073e-05,2]
[404367350,1770080266524,303.71623588,9.073e-05,2]
[404367351,1770080274742,500.0,9.073e-05,2]
[404367352,1770080274792,263.31124853,9.073e-05,2]
[404367353,1770080275188,500.0,9.073e-05,2]
[404367354,1770080300136,250.0,9.047e-05,2]
[404367364,1770080349444,638.58714571,8.974e-05,2]
[404367365,1770080349468,9361.41285429,8.974e-05,2]
[404367366,1770080381980,250.0,9.028e-05,2]
[404367367,1770080401684,388.59714571,9.073e-05,2]
[404367368,1770080401712,811.40285429,9.073e-05,2]
[404367369,1770080402088,150.0,9.073e-05,2]
[404367371,1770080422979,9038.60714571,8.974e-05,2]
[404367372,1770080423007,10000.01,8.974e-05,2]
[404367373,1770080423034,10000.01,8.974e-05,2]
[404367374,1770080423060,10000.01,8.974e-05,2]
[404367375,1770080423088,10000.01,8.974e-05,2]
[404367376,1770080423117,10000.01,8.974e-05,2]
[404367377,1770080423145,10000.01,8.974e-05,2]
[404367378,1770080423172,10000.01,8.974e-05,2]
[404367379,1770080423200,10000.01,8.974e-05,2]
[404367380,1770080423227,10000.01,8.974e-05,2]
[404367381,1770080449605,1000.0,0.00022,90]
[404367382,1770080457151,5000.01,8.929e-05,2]
[404367383,1770080457173,5000.01,8.929e-05,2]
[404367384,1770080457198,1501.411242,8.929e-05,2]
[404367386,1770080493471,5000.01,8.794e-05,2]
[404367387,1770080493491,1079.084,8.794e-05,2]
[404367388,1770080493663,516.174,8.794e-05,2]
[404367389,1770080499278,738.0,0.00022,90]
[404367391,1770080523239,500.0,8.973e-05,2]
[404367392,1770080523316,219.62317153,8.973e-05,2]
[404367393,1770080525436,500.0,8.973e-05,2]
[404367394,1770080525487,500.0,8.973e-05,2]
[404367395,1770080525539,500.0,8.973e-05,2]
[404367396,1770080525585,270.53963055,8.973e-05,2]
[404367397,1770080525634,500.0,8.973e-05,2]
[404367398,1770080525679,500.0,8.973e-05,2]
[404367399,1770080525760,500.0,8.973e-05,2]
[404367400,1770080525823,500.0,8.973e-05,2]
[404367401,1770080532483,151.0,8.971e-05,2]
[404367402,1770080532850,151.0,8.971e-05,2]
[404367403,1770080581553,150.0,8.973e-05,2]
[404367404,1770080582926,300.0,8.973e-05,2]
[404367405,1770080607510,500.0,8.973e-05,2]
[404367406,1770080609480,500.0,8.973e-05,2]
[404367407,1770080610843,500.0,8.973e-05,2]
[404367408,1770080611158,500.0,8.973e-05,2]
[404367409,1770080611467,647.62546706,8.973e-05,2]
[404367410,1770080612426,500.0,8.973e-05,2]
[404367411,1770080612483,500.0,8.973e-05,2]
[404367412,1770080652547,151.0,8.971e-05,2]
[404367413,1770080652901,151.0,8.971e-05,2]
[404367414,1770080692006,237.2858,8.874e-05,2]
[404367415,1770080701583,300.0,8.973e-05,2]
[404367416,1770080701620,270.93593086,8.973e-05,2]
[404367417,1770080701641,29.06406914,8.973e-05,2]
[404367418,1770080701695,1200.0,8.973e-05,2]
[404367419,1770080701734,300.0,8.973e-05,2]
[404367420,1770080761645,150.0,8.973e-05,2]
[404367421,1770080766146,353.74263412,8.973e-05,2]
[404367422,1770080767589,311.52829259,8.973e-05,2]
[404367423,1770080769321,151.0,8.971e-05,2]
[404367424,1770080769701,151.0,8.971e-05,2]
[404367425,1770080821567,300.0,8.973e-05,2]
[404367426,1770080841885,-4767.53243216,8.974e-05,2]
[404367427,1770080844998,-5000.01,8.974e-05,2]
[404367428,1770080845326,-5000.01,8.974e-05,2]
[404367429,1770080847651,-5000.01,8.874e-05,2]
[404367430,1770080849866,-4999.99,8.874e-05,2]
[404367431,1770080850718,-3951.58140987,8.974e-05,2]
[404367432,1770080881506,300.0,8.973e-05,2]
[404367433,1770080891429,151.0,8.971e-05,2]
[404367434,1770080891795,151.0,8.971e-05,2]
[404367435,1770080900106,-490000.0,8.974e-05,2]
[404367436,1770080900393,-9398.01,8.974e-05,2]
[404367437,1770080900525,-10000.01,8.974e-05,2]
[404367438,1770080900672,-10000.01,8.974e-05,2]
[404367439,1770080900866,-10000.01,8.974e-05,2]
[404367440,1770080901073,-10000.01,8.974e-05,2]
[404367441,1770080901152,-10000.01,8.974e-05,2]
[404367442,1770080901280,-10000.01,8.974e-05,2]
[404367443,1770080901441,-10000.01,8.974e-05,2]
[404367444,1770080901571,-10000.01,8.974e-05,2]
[404367445,1770080940739,2500.0,8.874e-05,2]
[404367446,1770080941571,300.0,8.973e-05,2]
[404367447,1770080942109,150.0,8.973e-05,2]
[404367448,1770080948187,10000.01,7.945e-05,2]
[404367449,1770080948211,172.65808,7.945e-05,2]
[404367450,1770080949052,-6877.35192,8.974e-05,2]
[404367451,1770080949209,-10000.01,8.974e-05,2]
[404367452,1770080949311,-10000.01,8.974e-05,2]
[404367453,1770080949443,-10000.01,8.974e-05,2]
[404367454,1770080949609,-10000.01,8.974e-05,2]
[404367455,1770080949702,-10000.01,8.974e-05,2]
[404367456,1770080951926,-10000.01,8.974e-05,2]
[404367457,1770080952029,-10000.01,8.974e-05,2]
[404367458,1770080952142,-10000.01,8.974e-05,2]
[404367459,1770080999179,171.8,7.135e-05,2]
[404367461,1770081001704,300.0,8.973e-05,2]
[404367462,1770081001744,1200.0,8.973e-05,2]
[404367463,1770081011727,151.0,8.971e-05,2]
[404367464,1770081012104,151.0,8.971e-05,2]
[404367468,1770081032295,-652.0,8.974e-05,2]
[404367469,1770081032306,-379.66984044,8.974e-05,2]
[404367470,1770081032321,-1011.19177213,8.974e-05,2]
[404367471,1770081032332,-2176.41990485,8.974e-05,2]
[404367472,1770081032368,-366.13195705,8.974e-05,2]
[404367473,1770081032378,-1858.89263188,8.974e-05,2]
[404367474,1770081032389,-209887.1273392,8.974e-05,2]
[404367475,1770081032399,-222133.23257426,8.974e-05,2]
[404367476,1770081032410,-168819.69994601,8.974e-05,2]
[404367477,1770081032421,-373296.97993767,8.974e-05,2]
[404367478,1770081032435,-1254.41808677,8.974e-05,2]
[404367480,1770081032446,-49088.37030377,8.974e-05,2]
[404367497,1770081038455,-1685042.51279823,8.974e-05,2]
[404367498,1770081038466,-500.0,8.974e-05,2]
[404367499,1770081038475,-3159.9548,8.974e-05,2]
[404367500,1770081038485,-23688.3525,8.974e-05,2]
[404367501,1770081038496,-300.0,8.974e-05,2]
[404367502,1770081038506,-300.0,8.974e-05,2]
[404367503,1770081038516,-250.0,8.974e-05,2]
[404367504,1770081038525,-1739.60030227,8.974e-05,2]
[404367505,1770081038535,-1273.29157306,8.974e-05,2]
[404367506,1770081038544,-923.5689414,8.974e-05,2]
[404367507,1770081038554,-219.81204273,8.974e-05,2]
[404367508,1770081038563,-1163.72267845,8.974e-05,2]
[404367509,1770081038573,-224.0,8.974e-05,2]
[404367510,1770081038582,-1000.0,9.073e-05,2]
[404367511,1770081038591,-500.0,9.074e-05,2]
[404367512,1770081038600,-347.23037837,9.074e-05,2]
[404367513,1770081038610,-9999.99,9.074e-05,2]
[404367514,1770081038619,-3847.13,9.074e-05,2]
[404367515,1770081038628,-299.99,9.074e-05,2]
[404367516,1770081038638,-14610.22,9.074e-05,2]
[404367518,1770081038647,-150.99,9.074e-05,2]
[404367520,1770081038657,-9999.99,9.074e-05,2]
[404367522,1770081038666,-499.99,9.074e-05,2]
[404367524,1770081038675,-4999.99,9.074e-05,2]
[404367526,1770081038685,-999.99,9.074e-05,2]
[404367528,1770081038694,-9999.99,9.074e-05,2]
[404367530,1770081038703,-1320.38,9.074e-05,2]
[404367532,1770081038712,-5905.17,9.074e-05,2]
[404367534,1770081038721,-1609.62,9.074e-05,2]
[404367536,1770081038731,-9999.99,9.074e-05,2]
[404367538,1770081038741,-19041.0,9.074e-05,2]
[404367541,1770081038751,-2979.54,9.074e-05,2]
[404367543,1770081038761,-150.99,9.074e-05,2]
[404367545,1770081038770,-3185.25,9.074e-05,2]
[404367547,1770081038780,-26696.53,9.074e-05,2]
[404367549,1770081038789,-9999.99,9.074e-05,2]
[404367551,1770081038798,-9999.99,9.074e-05,2]
[404367553,1770081038808,-1852.42,9.084e-05,2]
[404367555,1770081038817,-33288.2505,9.174e-05,2]
[404367557,1770081038826,-5304.6,9.491e-05,2]
[404367559,1770081038835,-333254.5226672,9.538e-05,2]
[404367560,1770081038844,-9999.99,9.67e-05,2]
[404367562,1770081038853,-27680.2,9.67e-05,2]
[404367564,1770081038862,-29999.99,9.67e-05,2]
[404367566,1770081038872,-3724.9148492,9.67e-05,2]
[404367568,1770081038882,-9069.8661471,9.67e-05,2]
[404367570,1770081038891,-14244.17,9.766e-05,2]
[404367572,1770081038901,-343.0,9.807e-05,2]
[404367574,1770081038910,-472.0,9.826e-05,2]
[404367576,1770081038919,-500.0,9.836e-05,2]
[404367578,1770081038928,-1441.0,9.836e-05,2]
[404367580,1770081038937,-255.0,9.87e-05,2]
[404367582,1770081038947,-420.0,9.87e-05,2]
[404367584,1770081038956,-1680.0,9.87e-05,2]
[404367586,1770081038966,-300.0,9.871e-05,2]
[404367588,1770081038975,-500.0,9.871e-05,2]
[404367590,1770081038984,-250.0,9.871e-05,2]
[404367592,1770081038994,-250.0,9.871e-05,2]
[404367594,1770081039004,-193.0,9.871e-05,2]
[404367596,1770081039013,-300.0,9.871e-05,2]
[404367598,1770081039023,-300.0,9.871e-05,2]
[404367599,1770081039033,-1000.0,9.879e-05,2]
[404367601,1770081039043,-211.71017853,0.0001,2]
[404367603,1770081039052,-211.71017853,0.0001,2]
[404367605,1770081039062,-211.71017853,0.0001,2]
[404367607,1770081039072,-151.0,0.0001,2]
[404367609,1770081039081,-500.0,0.0001,2]
[404367611,1770081039091,-151.0,0.0001,2]
[404367613,1770081039101,-200.0,0.0001,2]
[404367615,1770081039111,-151.0,0.0001,2]
[404367617,1770081039120,-151.0,0.0001,2]
[404367619,1770081039130,-151.0,0.0001,2]
[404367621,1770081039140,-151.0,0.0001,2]
[404367623,1770081039151,-151.0,0.0001,2]
[404367625,1770081039162,-151.0,0.0001,2]
[404367627,1770081039172,-151.0,0.0001,2]
[404367630,1770081039182,-151.0,0.0001,2]
[404367631,1770081039192,-151.0,0.0001,2]
[404367633,1770081039202,-151.0,0.0001,2]
[404367636,1770081039212,-151.0,0.0001,2]
[404367638,1770081039221,-151.0,0.0001,2]
[404367640,1770081039231,-200.0,0.0001,2]
[404367641,1770081039241,-151.0,0.0001,2]
[404367643,1770081039253,-151.0,0.0001,2]
[404367645,1770081039265,-151.0,0.0001,2]
[404367648,1770081039275,-151.0,0.0001,2]
[404367650,1770081039284,-151.0,0.0001,2]
[404367651,1770081039293,-151.0,0.0001,2]
[404367654,1770081039303,-151.0,0.0001,2]
[404367655,1770081039312,-500.0,0.0001,2]
[404367658,1770081039322,-500.0,0.0001,2]
[404367660,1770081039331,-500.0,0.0001,2]
[404367662,1770081039341,-500.0,0.0001,2]
[404367663,1770081039350,-500.0,0.0001,2]
[404367665,1770081039360,-500.0,0.0001,2]
[404367667,1770081039369,-500.0,0.0001,2]
[404367670,1770081039380,-500.0,0.0001,2]
[404367671,1770081039389,-500.0,0.0001,2]
[404367674,1770081039399,-500.0,0.0001,2]
[404367675,1770081039408,-500.0,0.0001,2]
[404367678,1770081039418,-500.0,0.0001,2]
[404367680,1770081039430,-500.0,0.0001,2]
[404367682,1770081039439,-500.0,0.0001,2]
[404367683,1770081039448,-500.0,0.0001,2]
[404367685,1770081039457,-500.0,0.0001,2]
[404367687,1770081039467,-500.0,0.0001,2]
[404367689,1770081039476,-500.0,0.0001,2]
[404367691,1770081039485,-500.0,0.0001,2]
[404367693,1770081039496,-500.0,0.0001,2]
[404367695,1770081039505,-500.0,0.0001,2]
[404367697,1770081039514,-500.0,0.0001,2]
[404367699,1770081039523,-151.0,0.0001,2]
[404367701,1770081039533,-151.0,0.0001,2]
[404367703,1770081039542,-151.0,0.0001,2]
[404367705,1770081039551,-151.0,0.0001,2]
[404367707,1770081039560,-151.0,0.0001,2]
[404367709,1770081039570,-151.0,0.0001,2]
[404367711,1770081039580,-151.0,0.0001,2]
[404367713,1770081039588,-151.0,0.0001,2]
[404367715,1770081039598,-151.0,0.0001,2]
[404367717,1770081039607,-151.0,0.0001,2]
[404367720,1770081039616,-151.0,0.0001,2]
[404367721,1770081039625,-739.4235685,0.0001,2]
[404367724,1770081039635,-174.66687349,0.0001,2]
[404367726,1770081039644,-1379.17071038,0.0001,2]
[404367728,1770081039654,-209.0,0.0001,2]
[404367729,1770081039663,-209.0,0.0001,2]
[404367731,1770081039677,-211.48188221,0.0001,2]
[404367733,1770081039686,-150.0081212,0.0001,2]
[404367735,1770081039696,-6998.0119,0.00010055,2]
[404367737,1770081039705,-500.91194722,0.00010074,2]
[404367739,1770081039715,-164.14571343,0.00010074,2]
[404367741,1770081039724,-168.13382401,0.00010074,2]
[404367743,1770081039733,-500.0,0.00010074,2]
[404367745,1770081039742,-164.70227396,0.00010074,2]
[404367747,1770081039752,-500.0,0.00010074,2]
[404367749,1770081039762,-541.62569807,0.00010074,2]
[404367751,1770081039771,-162.53028247,0.00010074,2]
[404367753,1770081039781,-500.0,0.00010074,2]
[404367755,1770081039790,-500.0,0.00010074,2]
[404367757,1770081039799,-500.0,0.00010074,2]
[404367759,1770081039808,-225.36065254,0.00010074,2]
[404367761,1770081039817,-500.0,0.00010074,2]
[404367763,1770081039826,-175.91942146,0.00010074,2]
[404367765,1770081039835,-500.0,0.00010074,2]
[404367767,1770081039844,-500.0,0.00010074,2]
[404367769,1770081039853,-569.16951839,0.00010074,2]
[404367771,1770081039862,-225.48373467,0.00010074,2]
[404367773,1770081039871,-170.36367963,0.00010074,2]
[404367775,1770081039881,-500.0,0.00010074,2]
[404367777,1770081039890,-500.0,0.00010074,2]
[404367779,1770081039899,-500.0,0.00010074,2]
[404367781,1770081039909,-500.0,0.00010074,2]
[404367783,1770081039918,-500.0,0.00010074,2]
[404367785,1770081039927,-500.0,0.00010074,2]
[404367787,1770081039936,-163.90719075,0.00010074,2]
[404367789,1770081039945,-239.65788203,0.00010074,2]
[404367791,1770081039955,-500.0,0.00010074,2]
[404367793,1770081039964,-500.0,0.00010074,2]
[404367796,1770081039974,-500.0,0.00010074,2]
[404367797,1770081039983,-500.0,0.00010074,2]
[404367800,1770081039993,-500.0,0.00010074,2]
[404367802,1770081040004,-500.0,0.00010074,2]
[404367804,1770081040014,-500.0,0.00010074,2]
[404367806,1770081040024,-500.0,0.00010074,2]
[404367808,1770081040034,-500.0,0.00010074,2]
[404367810,1770081040043,-500.0,0.00010074,2]
[404367811,1770081040052,-500.0,0.00010074,2]
[404367813,1770081040062,-500.0,0.00010074,2]
[404367815,1770081040071,-500.0,0.00010074,2]
[404367817,1770081040080,-500.0,0.00010074,2]
[404367819,1770081040090,-500.0,0.00010074,2]
[404367820,1770081040098,-500.0,0.00010074,2]
[404367821,1770081040108,-500.0,0.00010074,2]
[404367822,1770081040117,-500.0,0.00010074,2]
[404367823,1770081040126,-500.0,0.00010074,2]
[404367824,1770081040135,-500.0,0.00010074,2]
[404367825,1770081040143,-500.0,0.00010074,2]
[404367826,1770081040152,-166.29434153,0.00010074,2]
[404367827,1770081040162,-500.0,0.00010074,2]
[404367829,1770081040171,-163.07853281,0.00010074,2]
[404367831,1770081040180,-500.0,0.0001011,2]
[404367833,1770081040189,-397.0,0.00010245,2]
[404367835,1770081040197,-1054.0,0.00010281,2]
[404367837,1770081040206,-486.73,0.000103,2]
[404367839,1770081040215,-500.0,0.00010384,2]
[404367841,1770081040225,-500.0,0.00010548,2]
[404367842,1770081040234,-200.0,0.00010548,2]
[404367844,1770081040245,-200.0,0.00010548,2]
[404367846,1770081040254,-1000.0,0.00010622,2]
[404367848,1770081040264,-1000.0,0.00010622,2]
[404367851,1770081040273,-1005.56383771,0.00010622,2]
[404367852,1770081040283,-1000.0,0.00010622,2]
[404367854,1770081040293,-1000.0,0.00010622,2]
[404367856,1770081040302,-543.53042842,0.00010622,2]
[404367858,1770081040311,-501.31844292,0.00010622,2]
[404367861,1770081040320,-1000.0,0.00010622,2]
[404367863,1770081040329,-1000.0,0.00010622,2]
[404367864,1770081040338,-1000.0,0.00010622,2]
[404367866,1770081040347,-1000.0,0.00010622,2]
[404367868,1770081040357,-1000.0,0.00010622,2]
[404367871,1770081040367,-1000.0,0.00010622,2]
[404367873,1770081040377,-1000.0,0.00010622,2]
[404367874,1770081040386,-1000.0,0.00010622,2]
[404367876,1770081040395,-1000.0,0.00010622,2]
[404367879,1770081040406,-245.04092473,0.00010622,2]
[404367881,1770081040415,-447.99725278,0.00010622,2]
[404367883,1770081040427,-1000.0,0.00010622,2]
[404367885,1770081040436,-490.75391952,0.00010622,2]
[404367887,1770081040445,-1000.0,0.00010622,2]
[404367889,1770081040454,-1000.0,0.00010622,2]
[404367891,1770081040463,-1000.0,0.00010622,2]